[Event "8th RTU Open 2018"]
[Site "Riga"]
[Date "2018.08.07"]
[Round "3"]
[White "Jazdanovs, Aleksandrs"]
[Black "Ruiz Castillo, Joshua Daniel"]
[Result "0-1"]
[ECO "C15"]
[WhiteElo "2042"]
[BlackElo "2415"]
[Annotator "NA"]
[PlyCount "62"]
[EventDate "2018.08.06"]
[EventType "swiss"]
[EventCountry "LAT"]
[SourceTitle "playchess.com"]
[Source "ChessBase"]
[SourceQuality "1"]
[TimeControl "5400+30"]

1. e4 {[%emt 0:00:11]} e6 {[%emt 0:00:00]} 2. d4 {[%emt 0:00:13]} d5 {[%emt 0:00:00]} 3. Nc3 {[%emt 0:00:15]} Bb4 {[%emt 0:00:00]} 4. exd5 {[%emt 0:00:05]} exd5 {[%emt 0:00:00]} 5. Bd3 {[%emt 0:00:06]} Nf6 {[%emt 0:05:30]} 6. Nge2 {[%emt 0:02:31]} O-O {[%emt 0:02:10]} 7. O-O {[%emt 0:02:44]} Bg4 {[%emt 0:01:48]} 8. Bg5 {[%emt 0:04:01]} c6 {[%emt 0:00:20]} 9. Qd2 {[%emt 0:03:54]} Nbd7 {[%emt 0:08:02]} 10. a3 {[%emt 0:01:52]} Bd6 {[%emt 0:17:06]} 11. h3 {[%emt 0:03:04]} Bh5 {[%emt 0:00:37]} 12. Nf4 {[%emt 0:02:47]} Bg6 {[%emt 0:00:28]} 13. Nxg6 {[%emt 0:01:08]} fxg6 {[%emt 0:04:45]} 14. Rfe1 {[%emt 0:08:49]} Qc7 {[%emt 0:01:14]} 15. Re6 {[%emt 0:03:52]} Nh5 {[%emt 0:08:11]} 16. Rae1 {[%emt 0:05:02]} Bh2+ {[%emt 0:02:01]} 17. Kh1 {[%emt 0:00:19]} Nf4 {[%emt 0:02:08]} 18. Bxf4 {[%emt 0:00:34]} Bxf4 {[%emt 0:00:05]} 19. Qe2 {[%emt 0:01:23]} Bd6 {[%emt 0:00:07]} 20. g3 {[%emt 0:09:31]} Nf6 {[%emt 0:00:52]} 21. Kg2 {[%emt 0:00:54]} Rf7 {[%emt 0:01:05]} 22. Qe3 {[%emt 0:07:19]} Raf8 {[%emt 0:01:38]} 23. Re2 {[%emt 0:05:51]} Qd7 {[%emt 0:01:54]} 24. Qg5 {[%emt 0:04:02]} b5 {[%emt 0:05:02]} 25. f4 {[%emt 0:08:04]} Nh5 {[%emt 0:04:47]} 26. Qg4 {[%emt 0:13:00]} Bxf4 {[%emt 0:01:42]} 27. gxf4 {[%emt 0:01:21]} Nxf4+ {[%emt 0:00:11]} 28. Kh2 {[%emt 0:01:13]} h5 {[%emt 0:01:33]} 29. Qg3 {[%emt 0:00:48]} Nxe2 {[%emt 0:01:17]} 30. Rxe2 {[%emt 0:00:20]} Rf3 {[%emt 0:00:03]} 31. Qg2 {[%emt 0:01:16]} Qd6+ {[%emt 0:00:15]} 0-1

[Event "8th RTU Open 2018"]
[Site "Riga"]
[Date "2018.08.07"]
[Round "3"]
[White "Pavlov, Sergey"]
[Black "Kuznecovs, Nikita"]
[Result "1-0"]
[ECO "A46"]
[WhiteElo "2003"]
[BlackElo "2280"]
[Annotator "NA"]
[PlyCount "61"]
[EventDate "2018.08.06"]
[EventType "swiss"]
[EventCountry "LAT"]
[SourceTitle "playchess.com"]
[Source "ChessBase"]
[SourceQuality "1"]
[TimeControl "5400+30"]

1. Nf3 {[%emt 0:00:00]} Nf6 {[%emt 0:00:00]} 2. d4 {[%emt 0:00:29]} e6 {[%emt 0:00:02]} 3. e3 {[%emt 0:00:09]} c5 {[%emt 0:01:20]} 4. Bd3 b6 {[%emt 0:00:10]} 5. O-O {[%emt 0:00:57]} Be7 6. c4 {[%emt 0:02:22]} cxd4 {[%emt 0:00:45]} 7. exd4 {[%emt 0:02:24]} d6 {[%emt 0:06:26]} 8. Nc3 Bb7 9. d5 {[%emt 0:01:37]} e5 {[%emt 0:01:02]} 10. Nh4 {[%emt 0:16:50]} O-O {[%emt 0:05:41]} 11. Nf5 {[%emt 0:03:36]} Re8 {[%emt 0:00:09]} 12. f4 {[%emt 0:02:10]} Bf8 {[%emt 0:03:43]} 13. fxe5 {[%emt 0:06:27]} dxe5 {[%emt 0:04:09]} 14. Bg5 {[%emt 0:02:06]} Nbd7 {[%emt 0:33:01]} 15. Ne4 {[%emt 0:02:50]} Kh8 {[%emt 0:02:49]} 16. Nfd6 {[%emt 0:07:26]} Bxd6 {[%emt 0:10:02]} 17. Nxd6 {[%emt 0:00:14]} Qc7 {[%emt 0:00:04]} 18. Nxe8 {[%emt 0:06:10]} Rxe8 {[%emt 0:01:00]} 19. Kh1 {[%emt 0:10:12]} e4 {[%emt 0:10:58]} 20. Be2 {[%emt 0:04:16]} Qe5 {[%emt 0:00:06]} 21. Qc1 {[%emt 0:03:37]} e3 {[%emt 0:08:02]} 22. Bf4 {[%emt 0:02:50]} Qe4 {[%emt 0:00:07]} 23. Qc3 {[%emt 0:03:25]} b5 {[%emt 0:06:14]} 24. Bd3 {[%emt 0:06:17]} b4 {[%emt 0:01:02]} 25. Qc2 {[%emt 0:07:47]} Qd4 {[%emt 0:02:30]} 26. Rad1 {[%emt 0:00:31]} Qb6 {[%emt 0:00:29]} 27. Qe2 {[%emt 0:01:11]} h5 {[%emt 0:01:59]} 28. Rf3 {[%emt 0:01:43]} Ng4 {[%emt 0:01:39]} 29. h3 {[%emt 0:00:17]} g5 {[%emt 0:00:20]} 30. Bxg5 {[%emt 0:01:30]} Rg8 {[%emt 0:00:40]} 31. Bxe3 {[%emt 0:00:55]} 1-0